Cogmind - Beta 17.1 @@@ ROGUE MODE // 2026.09.12 @ 20:16:39 Player: MOPO3 Result: Self-destructed Performance ------------- Evolutions (2) 1000 Regions Visited (3) 600 Robots Destroyed (29) 145 Value Destroyed (798) 798 Prototype IDs (0) 0 Alien Tech Used (0) 0 Bonus (0) 0 TOTAL SCORE: 2543 Bonus ------- None Cogmind --------- Core Integrity 333/550 Matter 155/300 Energy 265/265 System Corruption 0% Temperature Cool (9) Movement Treading (240) Ox1 Location -8/Materials Parts ------- > --- POWER (1) -------- Improved Ion Engine > --- PROPULSION (2) --- Light Treads > --- UTILITY (5) ------ Large Storage Unit Seismic Detector > --- WEAPON (3) ------- Assault Rifle Heavy Assault Rifle Flak Gun > --- INVENTORY (15) --- Subdweller Power Source Light Treads Light Treads Compact Wheel Medium Matter Pod (100) Actuator Array Flak Gun Flak Gun Flak Gun Hammer Spear Spear Spear Spear Peak State ------------ > --- POWER ------------ Improved Ion Engine > --- PROPULSION ------- Light Treads Light Treads > --- UTILITY ---------- Large Storage Unit Seismic Detector Reaction Control System Heavy Armor Plating > --- WEAPON ----------- Assault Rifle Heavy Assault Rifle Makeshift Shrapnel Gun > --- INVENTORY -------- Subdweller Power Source Light Treads Light Treads Compact Wheel Medium Matter Pod Actuator Array Flak Gun Flak Gun Flak Gun Flak Gun Hammer Spear Spear Spear Spear [Rating: 26] Favorites ----------- Power Ion Engine Engine Ion Engine Propulsion Light Treads Treads Light Treads Utility Large Storage Unit Device Seismic Detector Storage Large Storage Unit Protection Core Shielding Weapon Assault Rifle Energy Gun Small Laser Ballistic Gun Assault Rifle Ballistic Cannon Light Cannon Special Weapon Mining Laser Build | -11 -10 -10 -8 ------- Run | Yrd Mat Sub Mat Slots Evolved 4 | . . . 4 Power . | . . . . Propulsion . | . . . . Utility 3 | . . . 3 Weapon 1 | . . . 1 Parts Attached 24 | 7 5 7 5 Power 3 | 1 . 2 . Engine 3 | 1 . 2 . Core . | . . . . Reactor . | . . . . Propulsion 4 | 2 . 2 . Treads 4 | 2 . 2 . Leg . | . . . . Wheel . | . . . . Hover . | . . . . Flight . | . . . . Utility 9 | 2 4 . 3 Device 2 | 1 . . 1 Storage 3 | 1 2 . . Processor . | . . . . Hackware . | . . . . Protection 4 | . 2 . 2 Artifact . | . . . . Weapon 8 | 2 1 3 2 Energy Gun 1 | 1 . . . Energy Cannon . | . . . . Ballistic Gun 5 | 1 . 2 2 Ballistic Cannon 1 | . 1 . . Launcher . | . . . . Special Weapon 1 | . . 1 . Impact Weapon . | . . . . Slashing Weapon . | . . . . Piercing Weapon . | . . . . Special Melee Weapon . | . . . . Unidentified Prototypes . | . . . . Parts Lost 9 | . 1 5 3 Power 1 | . . 1 . Propulsion 3 | . . 2 1 Utility 3 | . 1 . 2 Weapon 2 | . . 2 . Highest Loss Streak 4 | . 1 4 3 To Critical Strikes . | . . . . Average Backups 11 | 3 9 14 12 Power . | . 1 1 1 Propulsion 3 | 1 3 3 2 Utility 2 | . 2 3 2 Weapon 4 | . 3 6 6 Tool/Special . | . . . . Unused Backups 21 | . 3 2 16 Power 1 | . . 1 . Propulsion 5 | . 1 1 3 Utility 3 | . 1 . 2 Weapon 12 | . 1 . 11 Tool/Special . | . . . . Average Slot Usage (%) 96 | . 100 98 76 Engine 13 | . 14 13 9 Treads 26 | . 28 27 16 Device 2 | . 2 . 9 Storage 13 | . 14 14 9 Protection 12 | . 11 14 10 Ballistic Gun 15 | . 14 14 21 Ballistic Cannon 9 | . 13 6 . Special Weapon 2 | . . 7 . Peak Build Rating 26 | 7 8 12 26 Average Rating 9 | 5 7 8 16 On Entrance 6 | . 7 8 12 Avg Prop Armor Cover (%) . | . . . . Naked Turns . | . . . . Heaviest Build 53 | 14 33 33 53 Greatest Support 40 | 40 40 40 40 Greatest Overweight (x) 1 | . . 1 1 Average Overweight (x) . | . . . . Largest Inventory Capacity 15 | 8 15 15 15 Average Capacity 12 | 7 11 15 15 Most Carried 15 | 4 14 15 15 Average Carried 11 | 3 9 14 13 Final Capacity 15 | 8 15 15 15 Final Carried 14 | 4 14 14 14 Class Distribution -------------------- 93% | Mutant 6% | Tank Dominant Class ---------------- Mutant | -10/Materials Mutant | -10/Subcaves Mutant | -8/Materials Resources | -11 -10 -10 -8 ----------- Run | Yrd Mat Sub Mat Matter Collected 1079 | 294 543 225 17 Remotely . | . . . . Salvage Created 946 | 134 569 192 51 Parts 61 | 10 36 13 2 Haulers Intercepted 2 | . 2 . . Recyclers Shooed 1 | 1 . . . Parts Field Recycled . | . . . . Retrieved Matter . | . . . . Parts Self-Destructed 11 | . . 11 . Prevented . | . . . . Parts Restored . | . . . . Kills | -11 -10 -10 -8 ------- Run | Yrd Mat Sub Mat Combat Hostiles Destroyed 19 | . 13 5 1 Guns 7 | . 2 4 1 Cannons 12 | . 11 1 . Classes Destroyed 10 | 2 5 2 1 Worker 1 | . . . 1 Builder 1 | . 1 . . Tunneler 2 | 2 . . . Hauler 2 | . 2 . . Recycler 1 | 1 . . . Operator 1 | . 1 . . Watcher 2 | . 2 . . Grunt 14 | . 13 . 1 Sentry 1 | . . 1 . Subdweller 4 | . . 4 . Best Kill Streak 3 | 3 3 3 1 Combat Bots Only 3 | . 3 3 1 Max Kills in Single Turn 1 | 1 1 1 1 Gunslinging . | . . . . Exploded . | . . . . Melee . | . . . . Uniques/NPCs Destroyed . | . . . . Combat | -11 -10 -10 -8 -------- Run | Yrd Mat Sub Mat Hostile Shots Fired 138 | . 52 31 55 Missed 35 | . 19 3 13 Hits 103 | . 33 28 42 Melee 4 | . . . 4 Projectile 99 | . 33 28 38 AOE 1 | . 1 . . Critical Strikes 5 | . . . 5 Damage Taken 2157 | . 463 704 990 Core 417 | . 51 149 217 Absorbed by Shields . | . . . . Redirected to Shielding 37 | . 4 33 . Regen/Repaired (Parts) 311 | . . . 311 Core Remaining (%) 60 | 100 . 20 . Volleys Fired 104 | 8 58 31 7 Largest 3 | 2 2 2 3 Hottest 120 | 60 50 120 71 Shots Fired 206 | 16 116 53 21 Gun 118 | 16 58 23 21 Cannon 73 | . 58 15 . Launcher . | . . . . Special 15 | . . 15 . Kinetic 183 | 8 116 38 21 Thermal 23 | 8 . 15 . Explosive . | . . . . Electromagnetic . | . . . . Robot Hit Streak 28 | 4 24 28 8 Robot Miss Streak 3 | 3 3 2 3 Penetration Max . | . . . . Secondary Targets . | . . . . Shots Hit Robots 132 | 8 83 28 13 Core Hits 56 | 4 33 10 9 Critical Kills . | . . . . Critical Parts Destroyed 1 | . 1 . . Critical Strikes 4 | . 4 . . Destroy 1 | . 1 . . Blast 3 | . 3 . . Melee Attacks . | . . . . Impact . | . . . . Slashing . | . . . . Piercing . | . . . . Sneak Attacks . | . . . . Combat Hostiles . | . . . . Follow-up Attacks . | . . . . Damage Inflicted 2074 | 93 1253 437 291 Guns 1123 | 93 519 220 291 Cannons 942 | . 725 217 . Explosions . | . . . . Melee . | . . . . Ramming 9 | . 9 . . Kinetic 2012 | 40 1244 437 291 Thermal 53 | 53 . . . Explosive . | . . . . Electromagnetic . | . . . . Impact . | . . . . Slashing . | . . . . Piercing . | . . . . Highest Corruption 1 | . 1 1 . Average Corruption 1 | . 1 1 . Corruption Purged . | . . . . Corruption Blocked . | . . . . Effects 10 | . . 10 . Message Errors 2 | . . 2 . Matter Fused 5 | . . 5 . Data Loss (minor) 1 | . . 1 . Misfires 2 | . . 2 . Overload Shots . | . . . . Overflow Damage 7 | . 7 . . Projectiles 7 | . 7 . . Explosions . | . . . . Melee . | . . . . Knockbacks 9 | . 8 1 . Impact . | . . . . Kinetic 9 | . 8 1 . Secondary . | . . . . Self-Inflicted Damage . | . . . . Shots . | . . . . Rammed 2 | . 2 . . Targets Rammed 2 | . 2 . . Kicked . | . . . . Crushed . | . . . . Highest Temperature 85 | . 46 5 85 Average Temperature 19 | . 14 5 34 Received Heat Transfer 732 | . 222 213 297 Siege Activations . | . . . . Martial Activations . | . . . . Shielding Activations . | . . . . Robots Disrupted . | . . . . Combat Hostiles . | . . . . Robots Corrupted . | . . . . Combat Hostiles . | . . . . Parts Fried . | . . . . Impact Corruptions . | . . . . Robots Melted . | . . . . Combat Hostiles . | . . . . Parts Melted 1 | . . 1 . Heat Transferred 125 | 125 . . . Parts Sabotaged . | . . . . Parts Stolen . | . . . . Parts Stripped . | . . . . Power Chain Reactions . | . . . . Alert | -11 -10 -10 -8 ------- Run | Yrd Mat Sub Mat Maximum Alert Level . | . . . . Low Security (%) 100 | 100 100 . 100 Level 1 . | . . . . Level 2 . | . . . . Level 3 . | . . . . Level 4 . | . . . . Level 5 . | . . . . High Security . | . . . . Max Security . | . . . . Peak Influence 164 | 10 164 . 58 Initial . | . . . . Average 43 | 1 57 . 6 Influence Increases 649 | 15 507 20 107 Destroy 0b10 Robot/C 300 | . 260 20 20 Destroy 0b10 Robot/NC 50 | 15 30 . 5 Destroy Leader 78 | . 68 . 10 Successful Hack 23 | . 12 . 11 Select Force Hacks 90 | . 60 . 30 Destroy Structure 3 | . 2 . 1 Lose Combat Pursuer 105 | . 75 . 30 Influence Decreases 629 | 15 355 172 87 Entered New Map 74 | . . 74 . Time Decay 507 | 15 345 90 57 Lost Part 48 | . 10 8 30 Squads Dispatched 7 | . 5 . 2 Investigation 6 | . 5 . 1 Extermination . | . . . . Reinforcement 1 | . . . 1 Assault . | . . . . Garrison . | . . . . Intercept . | . . . . Searches Triggered . | . . . . Construction Impeded . | . . . . Haulers Reinforced . | . . . . Active Scanning Responses . | . . . . Cargo Convoy Interrupts . | . . . . Stealth | -11 -10 -10 -8 --------- Run | Yrd Mat Sub Mat Distress Signals 2 | . 1 . 1 Communications Jammed . | . . . . Distress Signals . | . . . . Times Spotted 46 | . 26 6 14 Peak Tracking Total 14 | . 3 3 14 Tactical Retreats 5 | . 4 . 1 Traps | -11 -10 -10 -8 ------- Run | Yrd Mat Sub Mat Traps Triggered 3 | . 3 . . Indirectly . | . . . . Trap Hack Attempts . | . . . . Triggered . | . . . . Disarmed . | . . . . Reprogrammed . | . . . . Reused . | . . . . Traps Extracted . | . . . . Installed . | . . . . Triggered . | . . . . Machines | -11 -10 -10 -8 ---------- Run | Yrd Mat Sub Mat Machines Disabled . | . . . . Max in Single Turn . | . . . . Machines Repaired . | . . . . Machines Dismantled . | . . . . Machines Sabotaged . | . . . . Overloaded Fab Kills . | . . . . Hacking | -11 -10 -10 -8 --------- Run | Yrd Mat Sub Mat Machines Accessed 13 | . 8 1 4 Terminals 8 | . 6 . 2 Fabricators . | . . . . Repair Stations 1 | . . . 1 Recycling Units 3 | . 2 . 1 Scanalyzers . | . . . . Garrison Access . | . . . . Total Hacks 50 | . 24 4 22 Successful 32 | . 9 4 19 Failed 17 | . 15 . 2 Catastrophic 5 | . 4 . 1 Database Lockouts 1 | . . . 1 Manual 25 | . 21 1 3 Terminals 26 | . 19 . 7 Fabricators . | . . . . Repair Stations 12 | . . . 12 Recycling Units 8 | . 5 . 3 Scanalyzers . | . . . . Garrison Access . | . . . . Terminal Hacks 9 | . 1 4 4 Record 8 | . . 4 4 Branch Access Points 1 | . 1 . . Fabricator Hacks . | . . . . Repair Station Hacks 10 | . . . 10 Scan Component 5 | . . . 5 Repair 5 | . . . 5 Recycling Unit Hacks 4 | . 2 . 2 Report Inventory 3 | . 2 . 1 Retrieve Components 1 | . . . 1 Scanalyzer . | . . . . Garrison Access Hacks . | . . . . Unauthorized Hacks 9 | . 6 . 3 Terminals 6 | . 4 . 2 Botnet 6 | . 4 . 2 Fabricators . | . . . . Repair Stations . | . . . . Recycling Units 3 | . 2 . 1 Tunnel 3 | . 2 . 1 Scanalyzers . | . . . . Garrison Access . | . . . . Data Cores Recovered 1 | . 1 . . Used . | . . . . Hacking Detections 11 | . 7 . 4 Full Trace Events 1 | . 1 . . Feedback Events . | . . . . Feedback Blocked . | . . . . Robot Schematics Acquired . | . . . . Robots Built . | . . . . Authchips . | . . . . Time . | . . . . Total Robot Build Rating . | . . . . Part Schematics Acquired . | . . . . Parts Built . | . . . . Authchips . | . . . . Time . | . . . . Total Part Build Rating . | . . . . Part Studies Acquired . | . . . . Parts Repaired 5 | . . . 5 Time 130 | . . . 130 Parts Recycled . | . . . . Recycled Matter . | . . . . Retrieved Matter . | . . . . Retrieved Components 2 | . . . 2 Parts Scanalyzed . | . . . . Part Schematics Acquired . | . . . . Parts Damaged . | . . . . Bothacking | -11 -10 -10 -8 ------------ Run | Yrd Mat Sub Mat Used RIF Installer . | . . . . Robots Hacked . | . . . . Non-combat . | . . . . Combat . | . . . . Robot Hacks Applied . | . . . . Relay Couplers Released . | . . . . Fabnet Peak Effective % . | . . . . Robots Rewired . | . . . . Allies Hacked . | . . . . Hacks Repelled . | . . . . Allies | -11 -10 -10 -8 -------- Run | Yrd Mat Sub Mat Total Allies . | . . . . Largest Group . | . . . . Highest-Rated Group . | . . . . Highest-Rated Ally . | . . . . Total Orders . | . . . . Ally Attacks . | . . . . Total Damage . | . . . . Kills . | . . . . Allies Corrupted . | . . . . Allies Melted . | . . . . Intel | -11 -10 -10 -8 ------- Run | Yrd Mat Sub Mat Active Infowar (turns) 583 | 29 300 . 254 Seismic 583 | 29 300 . 254 Robot Analysis Total . | . . . . Derelict Logs Recovered . | . . . . Drone Launches . | . . . . Drone Recoveries . | . . . . Exploration | -11 -10 -10 -8 ------------- Run | Yrd Mat Sub Mat Turns Passed 2927 | 117 1465 917 428 Spaces Moved 1363 | 54 692 468 149 Core 11 | 11 . . . Treads 1352 | 43 692 468 149 Legs . | . . . . Wheels . | . . . . Hover . | . . . . Flight . | . . . . Fastest Speed 50 | 50 160 160 160 Average Speed 160 | 137 160 163 164 Slowest Speed 240 | 160 160 240 240 Overloaded Moves . | . . . . Propulsion Burnouts . | . . . . Robots Hopped . | . . . . Potential Cave-ins . | . . . . Cave-ins Triggered . | . . . . Exploration Rate (%) 31 | 3 88 19 16 Regions Visited 3 Branch Regions 1 Pre-discovered Areas 3 | . 2 . 1 Known Exits Taken . | . . . . Unknown Exits Taken 3 | 1 1 1 . Scrap Searched . | . . . . Spaces Dug . | . . . . Terrain Destroyed . | . . . . Melee . | . . . . Projectile . | . . . . AOE . | . . . . Terrain Rammed . | . . . . Walls Destroyed . | . . . . Machines Disabled . | . . . . Actions | -11 -10 -10 -8 --------- Run | Yrd Mat Sub Mat Total 1868 | 77 934 541 316 Wait 318 | 5 159 24 130 Move 1360 | 53 691 467 149 Hop . | . . . . Pick Up 35 | 4 14 6 11 Fast Attach 15 | 7 . 1 7 Attach 8 | . 1 4 3 Detach . | . . . . Swap 8 | . 4 4 . Drop 17 | . 5 3 9 Fire 104 | 8 58 31 7 Melee . | . . . . Ram . | . . . . Kick . | . . . . Crush 2 | . 2 . . Escape Stasis . | . . . . Rewire 1 | . . 1 . Trap . | . . . . Miscellaneous . | . . . . Route ------- -11/Scrapyard -10/Materials (discovered 4 exits: [*Mat x2] / Min / *Sub) -10/Subcaves -8/Materials History --------- Turn | Location | Event 16 | -11/Scrapyard | Discovered new exit (range 15) 118 | -11/Scrapyard | Entered Materials 273 | -10/Materials | Identified exit to Mines 317 | -10/Materials | Build established: Mutant 654 | -10/Materials | Discovered new exit (range 9) 1398 | -10/Materials | Discovered new exit (range 16) 1576 | -10/Materials | Discovered new exit (range 4) 1583 | -10/Materials | Entered Subcaves 1627 | -10/Subcaves | Visited Clippyterm 1631 | -10/Subcaves | Learned Factory garrison access intel 1726 | -10/Subcaves | Shifting Twisted Machinery released Sub. Optics 1741 | -10/Subcaves | Shifting Twisted Machinery released Sub. Optics 1786 | -10/Subcaves | Shifting Twisted Machinery released Mak. Shrapnel Gun 1788 | -10/Subcaves | Shifting Twisted Machinery released Riot Gun 1932 | -10/Subcaves | A swath of the cavern ceiling suddenly collapsed 2239 | -10/Subcaves | Ambushed by Subdweller buried in earth 2252 | -10/Subcaves | Core integrity fell below 50% 2292 | -10/Subcaves | Lost 4 parts (1p2n1w) 2488 | -10/Subcaves | Discovered new exit (range 8) 2500 | -10/Subcaves | Entered Materials 2500 | -8/Materials | Evolved 4 slots: Utility x3, Weapon x1 2563 | -8/Materials | Repaired Lgt. Treads 2591 | -8/Materials | Repaired Lgt. Treads 2618 | -8/Materials | Repaired Assault Rifle 2645 | -8/Materials | Repaired Lgt. Treads 2673 | -8/Materials | Repaired Core Shielding 2799 | -8/Materials | Central database locked down 2928 | -8/Materials | Self-destructed Last Messages --------------- 02908_ C-30 ARC bursts open, deploying its payload. 02908_ L-31 Rogue unfolds itself. 02908_ G-47 Trooper unfolds itself. 02908_ K-01 Serf collects debris. 02909_ K-01 Serf destroyed. 02909_ Mak. Shrapnel Gun blasted off. 02910_ R-06 Scavenger collects Core Shielding. 02912_ Critical hit (Burn: +37). 02914_ R-06 Scavenger collects Mak. Shrapnel Gun. 02915_ R-06 Scavenger collects Wheel. 02917_ Acquired 5 matter. 02920_ Hvy. Armor Plating destroyed. 02920_ Critical hit (Burn: +37). 02921_ Acquired 7 matter. 02922_ Reaction Control System destroyed. 02922_ Critical hit (Blast). 02922_ Lgt. Treads destroyed. 02924_ U-05 Engineer builds a Wall. 02925_ Acquired 5 matter. 02926_ Electrolysis Chamber disabled. Map ----- +----------------------------------------------------+ | | | | | | | | | | | ????????????????????????????????????????????? | | ??????????????#####?########????######??????? | | ?????????????# #?# == #????# ######## | | ?????????????# #?# == #????# # """ | | ???????????### #?# #????# # """ | | ???######??# + ### ###### # """ | | ???# #??# # # + # | | ???# #?## ###### # # " | | ???# ### ##### """ # !# && | | ???# T """ + # " | | ???# ### ##### """ ##### # # | | ???# ####+####?# #???# ##########+## | | ???# + #?# #???# #??????# | | ???# ####"" """#?# #######???# #??????# | | ???# #??#"Y[ """#?# #?????????# ######## T | | ???# #??#"" """#?# #?????????# | | ???# #??# #?# #?????????#### ##### | | ???# ##############+##???????????# #???###### | | ???# + #???????????# #????????? | | ???# # """ """ #???????????#+#????????? | | ???# # """ "" @#??????????????????????? | | ???# # """ " l#??????????????????????? | | ???# ##### # g %l#??????????????????????? | | ???#+#???# # ! g = #??????????????????????? | | ??? ???+ # = ! % g#??????????????????????? | | ??? ???# # gg[#??????????????????????? | | ?? ???# #########;#??????????????????????? | | ?? ???? ?????? %s%"?????????????????????? | | ?? ???? ????? u ???????????????????? | | ? ???? ???? o ?????????????????? | | ? ????##????# #######/????????????????? | | ? ??????????# #???????????????????????? | | # ??????????# #???????????????????????? | | ?#####??????????+ s#???????????????????????? | | ????????????????# ????????????????????????? | | ????????????????# ????????????????????????? | | ????????????????# ????????????????????????? | | ???????????????? H ????????????????????????? | | ???????????????? ????????????????????????? | | ???????????????? ????????????????????????? | | ????????????????? ????????????????????????? | | ????????????????????????????????????????????? | | ????????????????????????????????????????????? | | ????????????????????????????????????????????? | | ????????????????????????????????????????????? | +----------------------------------------------------+ Best States ------------- Heat Dissipation 31 Energy Generation 15 Energy Capacity 265 Matter Stores 300 Matter Capacity 300 Sight Range 16 Terrain Scan Density 10 Armor Coverage 600 Core Shielding 20 Evasion (%) 50 Recoil Reduction 2 Item Schematics ----------------- None Robot Schematics ------------------ None Fabricated ------------ Nothing Repaired ---------- Lgt. Treads | 11% | -8/Materials Lgt. Treads | 73% | -8/Materials Assault Rifle | 28% | -8/Materials Lgt. Treads | 70% | -8/Materials Core Shielding | 26% | -8/Materials Studied --------- None Alien Tech Used ----------------- None Achievements -------------- Do Not Disturb Challenges ------------ None Game ------ Seed FrostGyrokineticFacilitator Manual? 0 Play Time 00:24:24 Cumulative 18.9 hours Start 2026.09.12 @ 19:49:15 End 2026.09.12 @ 20:16:39 Sessions 1 Manual Loads 0 Difficulty Rogue Special Mode None Game No. 20 Rogue 20 Adventurer 0 Explorer 0 Win Type - Total 1 Types 1/0/0/0/0/0/0/0/0/0 Lore% 11 Gallery% 23 Achievement% 25 Wizard Run 0 Options --------- Layout 0 ASCII 0 Keyboard 0 Movement Numpad Keybinds 0 Fullscreen 1 Font 18/Terminus Map View 76x50 Zoom Use 0% Tactical HUD 1 Map Filters NONE Filters NONE Steam 1 RUN: 2b316e28-56a3-44ea-b2b3-e5edb9f3ad01